bitfinex/quotes_SOLUSD_20240614
["timestamp","ask_amount","ask_price","bid_price","bid_amount"]
[1718398199638,8.32,141.95,141.94,7.8201]
[1718398200540,7.34654587,141.99,141.91,21.13]
[1718398200742,8.32,141.99,141.97,26.061]
[1718398200916,8.32,141.99,141.97,15.6368]
[1718398201122,2.6055,142.01,141.98,2.606]
[1718398201350,19.0353,142.02,141.99,2.6057]
[1718398201546,19.0353,142.02,141.99,2.6058]
[1718398201547,8.32,142.0,141.99,2.6058]
[1718398201743,8.32,142.0,141.98,18.2413]
[1718398202044,8.32,142.0,141.98,26.0589]
[1718398202351,19.0353,142.02,141.98,23.453]
[1718398202530,8.32,142.0,141.98,23.453]
[1718398202851,8.32,142.0,141.98,26.0588]
[1718398203136,8.32,142.0,141.99,2.6058]
[1718398203445,32.0616,142.02,141.98,26.0588]
[1718398203733,8.32,142.02,142.01,2.6053]
[1718398203943,8.32,142.03,142.0,23.4497]
[1718398204115,8.32,142.03,142.01,2.6054]
[1718398204318,8.32,142.03,142.01,7.8162]
[1718398204518,15.6329,142.01,141.97,2.6061]
[1718398204817,8.32,142.0,141.98,2.6059]
[1718398205010,8.32,142.0,141.98,7.8178]
[1718398205233,8.32,142.0,141.98,2.6059]
[1718398205444,7.8154,142.03,142.0,2.6055]
[1718398205747,15.8533,142.06,142.01,2.6053]
[1718398205748,8.32,142.02,142.01,2.6053]
[1718398206045,8.32,142.02,142.0,26.0549]
[1718398206223,8.32,142.02,142.0,7.8163]
[1718398206841,8.32,142.02,142.0,7.8166]
[1718398207246,8.32,142.02,142.0,15.6334]
[1718398207435,8.32,142.02,142.0,7.8166]
[1718398208543,8.32,142.02,142.0,15.6334]
[1718398209155,8.32,142.02,142.0,26.0558]
[1718398209450,8.32,142.02,142.01,2.6054]
[1718398209631,8.32,142.02,142.0,23.4504]
[1718398209831,8.32,142.02,142.01,2.6054]
[1718398210354,8.32,142.02,142.0,26.0558]
[1718398210546,10.9253,142.02,141.99,2.6057]
[1718398210739,8.32,142.01,142.0,2.6055]
[1718398211248,8.32,142.01,141.99,26.057]
[1718398211450,8.32,142.01,142.0,26.0562]
[1718398211645,8.32,142.01,142.0,2.6056]
[1718398212027,8.32,142.01,142.0,7.8168]
[1718398212231,8.32,142.01,141.99,7.8172]
[1718398212626,8.32,142.01,141.98,5.2118]
[1718398212826,8.32,142.0,141.99,7.8173]
[1718398213048,18.2361,142.03,141.99,7.8173]
[1718398213049,7.8153,142.03,142.0,7.8168]
[1718398213228,8.32,142.01,142.0,7.8168]
[1718398213428,8.32,142.01,142.0,2.6056]
[1718398213747,8.32,142.01,142.0,7.8168]
[1718398213943,8.32,142.01,142.0,2.6056]
[1718398214538,8.32,142.01,141.99,7.8169]
[1718398214766,8.32,142.01,141.99,15.6342]
[1718398215051,16.1372,142.0,141.97,2.6061]
[1718398215249,8.32,141.98,141.97,15.6367]
[1718398215434,8.32,142.01,142.0,2.6055]
[1718398215646,2.6051,142.03,142.0,26.88890397]
[1718398215825,8.32,142.02,142.0,24.28350397]
[1718398216028,8.32,142.02,142.0,26.88890397]
[1718398216431,8.32,142.02,142.01,2.6054]
[1718398216628,8.32,142.02,142.0,26.88890397]
[1718398216844,23.4447,142.04,142.01,7.8162]
[1718398216845,7.8149,142.04,142.01,7.8162]
[1718398217059,26.0481,142.05,142.02,2.6052]
[1718398217354,8.32,142.03,142.01,7.816]
[1718398217746,8.32,142.03,142.01,15.6323]
[1718398218145,8.32,142.03,142.01,7.816]
[1718398218345,8.32,142.03,142.01,2.6052]
[1718398218656,8.32,142.03,142.01,7.816]
[1718398218852,10.9251,142.03,142.0,26.0548]
[1718398219063,2.6051,142.03,142.0,26.0548]
[1718398219359,8.32,142.03,141.98,21.13]
[1718398219561,8.32,142.02,142.01,2.6054]
[1718398219870,8.32,142.02,142.0,23.4497]
[1718398220034,23.4442,142.04,142.01,15.6325]
[1718398220035,8.32,142.03,142.01,15.6325]
[1718398220234,8.32,142.03,142.01,2.6053]
[1718398220660,8.32,142.02,142.01,2.6053]
[1718398221064,8.32,142.02,142.01,7.8162]
[1718398221436,8.32,142.02,142.01,15.6325]
[1718398221654,2.6049,142.04,142.01,26.0542]
[1718398221974,15.8533,142.06,141.97,29.45]
[1718398222173,7.3429893,142.08,141.96,15.7238]
[1718398222174,2.6042,142.08,142.04,7.8145]
[1718398222404,8.32,142.06,142.05,7.8138]
[1718398222676,8.32,142.06,142.05,13.0233]
[1718398222864,8.32,142.06,142.05,7.8139]
[1718398223069,8.32,142.06,142.05,26.0468]
[1718398223257,8.32,142.06,142.05,2.6045]
[1718398223854,8.32,142.06,142.05,7.8139]
[1718398224058,8.32,142.06,142.05,15.628]
[1718398224251,2.6042,142.08,142.05,15.628]
[1718398224467,8.32,142.07,142.05,15.628]
[1718398224653,8.32,142.07,142.05,26.0468]
[1718398225020,8.32,142.07,142.06,2.6045]
[1718398225204,2.6045,142.06,142.03,2.6049]
[1718398225484,8.32,142.04,142.02,2.6052]
[1718398225664,8.32,142.03,142.02,7.8156]
[1718398225989,8.32,142.03,142.02,2.6052]
[1718398226379,8.32,142.03,142.02,7.8157]
[1718398226794,8.32,142.03,142.02,26.0525]
[1718398227691,8.32,142.03,142.02,7.8157]
[1718398228666,8.32,142.03,142.02,26.0525]
[1718398229258,8.32,142.03,142.02,7.8157]
[1718398229575,8.32,142.03,142.02,15.6315]
[1718398229773,8.32,142.03,142.02,26.0525]
[1718398229966,7.8133,142.07,142.04,7.8145]
[1718398230173,7.8133,142.07,142.04,2.6048]
[1718398230375,8.32,142.05,142.04,7.8145]
[1718398230563,39.59561594,142.1,142.07,2.6043]
[1718398230776,6.2167,142.1,142.09,2.6039]
[1718398231078,6.2167,142.1,142.08,7.8123]
[1718398231383,6.2167,142.1,142.08,15.6247]
[1718398231581,6.2167,142.1,142.08,7.8123]
[1718398231783,8.32,142.09,142.08,7.8123]
[1718398231994,8.32,142.09,142.08,2.604]
[1718398232282,8.32,142.09,142.07,26.0419]
[1718398232660,8.32,142.08,142.07,2.6041]
[1718398232858,8.32,142.09,142.08,2.6041]
[1718398233061,41.0612,142.11,142.08,2.6041]
[1718398233062,22.8357,142.11,142.08,7.8124]
[1718398233304,8.32,142.09,142.08,7.8124]
[1718398233679,8.32,142.09,142.08,2.6041]
[1718398233982,8.32,142.09,142.07,7.8127]
[1718398234489,8.32,142.09,142.07,15.6256]
[1718398234991,7.8114,142.1,142.07,7.8127]
[1718398235294,8.32,142.08,142.07,7.8127]
[1718398236266,8.32,142.08,142.07,15.6257]
[1718398236470,8.32,142.08,142.07,26.043]
[1718398237491,8.32,142.08,142.07,2.6043]
[1718398238594,8.32,142.08,142.07,7.8129]
[1718398240170,8.32,142.08,142.07,15.6259]
[1718398241180,8.32,142.08,142.07,7.8129]
[1718398241889,8.32,142.08,142.07,2.6043]
[1718398242097,41.0616,142.11,142.08,2.6041]
[1718398242300,8.32,142.09,142.08,2.6041]
[1718398243485,8.32,142.09,142.07,26.0428]
[1718398244079,2.6038,142.1,142.07,26.0428]
[1718398244286,41.0616,142.11,142.08,2.6041]
[1718398244497,8.32,142.09,142.08,2.6041]
[1718398244698,2.6038,142.1,142.08,2.6041]
[1718398244909,2.6038,142.1,142.04,29.45]
[1718398244910,2.6034,142.12,142.09,15.6236]
[1718398245213,8.32,142.11,142.09,15.6235]
[1718398245412,47.59051629,142.14,142.05,21.13]
[1718398245584,2.6032,142.13,142.1,26.0373]
[1718398245918,15.6194,142.13,142.1,2.6036]
[1718398246072,10.9234,142.12,142.1,2.6036]
[1718398246685,8.32,142.12,142.1,2.6037]
[1718398246976,7.8102,142.12,142.09,18.227]
[1718398247199,16.1302,142.12,142.09,18.227]
[1718398247400,10.9236,142.11,142.09,2.6038]
[1718398247708,23.942,142.11,142.08,2.604]
[1718398247886,16.131,142.11,142.08,7.8123]
[1718398248083,8.32,142.11,142.09,7.8118]
[1718398248307,8.32,142.11,142.09,2.6039]
[1718398248473,8.32,142.11,142.09,7.8118]
[1718398249411,8.32,142.11,142.09,2.6039]
[1718398249884,8.32,142.11,142.09,7.8118]
[1718398250204,8.32,142.11,142.09,2.6039]
[1718398250784,8.32,142.11,142.09,7.8118]
[1718398251594,8.32,142.11,142.09,2.6039]
[1718398251800,8.32,142.11,142.09,7.8118]
[1718398252404,8.32,142.11,142.09,2.6039]
[1718398253176,26.5467,142.1,142.05,5.2091]
[1718398253380,8.32,142.09,142.08,2.604]
[1718398253675,8.32,142.09,142.03,29.45]
[1718398253676,8.32,142.09,142.07,26.042]
[1718398253877,8.32,142.09,142.08,7.8124]
[1718398254383,8.32,142.09,142.08,15.6249]
[1718398254795,2.6036,142.11,142.08,15.6249]
[1718398254977,8.32,142.09,142.08,15.6249]
[1718398255411,8.32,142.09,142.08,26.0415]
[1718398257994,8.32,142.09,142.04,8.32]
[1718398258198,8.32,142.09,142.07,7.8129]
[1718398258405,8.32,142.09,142.07,15.6258]
[1718398258695,8.32,142.09,142.08,2.6041]
[1718398259831,8.32,142.09,142.08,7.8124]
[1718398260140,23.4315,142.12,142.09,2.6039]
[1718398260304,22.0284,142.14,142.06,21.13]
[1718398260504,22.0284,142.14,142.11,26.0348]
[1718398260505,24.6315,142.14,142.11,26.0348]
[1718398260718,8.32,142.12,142.1,26.0367]
[1718398260920,8.32,142.12,142.06,29.45]
[1718398260921,8.32,142.11,142.09,18.227]
[1718398261233,7.812,142.09,142.06,7.8134]
[1718398261438,22.0284,142.14,142.04,18.2335]
[1718398261439,31.7576,142.08,142.04,18.2335]
[1718398261734,8.32,142.07,142.05,15.6279]
[1718398261916,26.0409,142.09,142.06,7.8135]
[1718398262233,8.32,142.08,142.07,7.8129]
[1718398262427,8.32,142.08,142.07,2.6043]
[1718398262725,8.32,142.08,142.06,15.6267]
[1718398263032,8.32,142.08,142.06,26.0447]
[1718398263234,8.32,142.08,142.06,18.2312]
[1718398263530,8.32,142.09,142.08,2.6041]
[1718398263837,8.32,142.09,142.07,26.0428]
[1718398264207,8.32,142.08,142.07,26.0428]
[1718398264430,8.32,142.08,142.02,37.5541]
[1718398264632,8.32,142.07,142.06,26.045]
[1718398264842,8.32,142.08,142.07,2.6043]
[1718398266840,8.32,142.08,142.07,7.8129]
[1718398267758,16.1328,142.08,142.05,7.814]
[1718398267964,8.32,142.06,142.05,7.814]
[1718398268264,8.32,142.06,142.05,2.6046]
[1718398268771,8.32,142.06,142.05,7.814]
[1718398269463,8.32,142.06,142.05,15.6281]
[1718398269758,8.32,142.06,142.04,2.6048]
[1718398269957,8.32,142.05,142.03,26.0501]
[1718398270265,8.32,142.04,142.03,26.0501]
[1718398271148,7.8127,142.08,142.05,7.814]
[1718398271351,8.32,142.06,142.05,7.814]
[1718398271656,8.32,142.06,141.99,29.45]
[1718398271657,10.9246,142.06,142.03,2.605]
[1718398271959,8.32,142.04,142.02,2.6051]
[1718398272165,7.8144,142.05,142.02,2.6051]
[1718398272166,8.32,142.03,142.02,7.8155]
[1718398272463,8.32,142.03,142.02,2.6051]
[1718398272637,8.32,142.03,142.02,7.8156]
[1718398273134,8.32,142.03,142.02,15.6314]
[1718398273655,8.32,142.03,142.01,15.6322]
[1718398273837,26.0476,142.05,142.02,2.6052]
[1718398274160,8.32,142.03,142.01,26.0538]
[1718398274348,8.32,142.02,142.01,26.0538]
[1718398274547,8.32,142.02,142.01,7.8159]
[1718398274847,8.32,142.02,142.01,26.054]
[1718398275678,7.8127,142.08,142.05,2.6046]
[1718398275862,8.32,142.06,142.05,2.6046]
[1718398276061,8.32,142.06,142.04,26.0477]
[1718398276260,8.32,142.05,142.02,5.2103]
[1718398276461,26.0463,142.06,142.03,2.605]
[1718398276639,26.0463,142.06,142.02,23.4468]
[1718398276640,8.32,142.04,142.02,26.0519]
[1718398276840,8.32,142.03,142.02,26.0519]
[1718398279264,8.32,142.03,142.01,2.6053]
[1718398279451,23.4432,142.05,142.01,15.6322]
[1718398279764,23.4432,142.05,142.01,26.0541]
[1718398279765,8.32,142.02,142.01,26.0541]
[1718398280538,26.2161,142.06,142.02,26.0519]
[1718398280539,8.32,142.03,142.02,26.0519]
[1718398281146,8.32,142.03,142.01,26.0533]
[1718398281352,26.0472,142.05,142.02,2.6052]
[1718398281549,8.32,142.03,142.02,15.6315]
[1718398282074,8.32,142.03,142.02,7.8157]
[1718398282249,8.32,142.03,142.02,2.6052]
[1718398283467,8.32,142.03,142.02,7.8157]
[1718398284570,8.32,142.03,142.01,7.8159]
[1718398285066,8.32,142.03,142.01,23.4486]
[1718398285248,8.32,142.03,142.01,7.8159]
[1718398285856,8.32,142.03,142.01,23.4485]
[1718398286044,8.32,142.03,142.02,2.6052]
[1718398286554,8.32,142.03,142.01,26.0538]
[1718398286868,8.32,142.03,142.02,2.6052]
[1718398287370,8.32,142.03,142.01,26.0538]
[1718398287569,8.32,142.03,142.01,7.8159]
[1718398288144,26.0477,142.05,142.02,2.6052]
[1718398288374,8.32,142.03,142.02,7.8157]
[1718398288853,8.32,142.03,142.02,2.6052]
[1718398289242,8.32,142.03,142.01,26.0538]
[1718398289449,8.32,142.02,142.01,26.0538]
[1718398290562,8.32,142.04,142.03,7.815]
[1718398291243,8.32,142.04,142.02,26.0519]
[1718398291447,8.32,142.03,142.02,26.0521]
[1718398291690,8.32,142.03,142.02,26.0525]
[1718398291989,8.32,142.04,142.03,2.605]
[1718398292870,7.8138,142.06,142.03,2.605]
[1718398293063,8.32,142.04,142.03,2.605]
[1718398293266,8.32,142.04,142.03,7.8151]
[1718398293470,15.6274,142.06,142.03,2.605]
[1718398293656,8.32,142.04,142.03,2.605]
[1718398294601,8.32,142.04,142.02,26.0521]
[1718398294882,8.32,142.04,142.03,2.605]
[1718398295088,8.32,142.04,142.02,26.0521]
[1718398296191,8.32,142.04,142.02,7.8153]
[1718398296362,8.32,142.04,142.02,15.631]
[1718398296681,8.32,142.03,142.02,7.8153]
[1718398296897,8.32,142.03,142.02,26.0521]
[1718398300592,8.32,142.03,142.02,7.8153]
[1718398301096,8.32,142.03,142.02,15.6311]
[1718398301902,2.6047,142.05,142.02,15.6311]
[1718398302106,0.17,142.08,142.04,2.6048]
[1718398302309,2.6044,142.07,142.04,2.6048]
[1718398302516,2.6044,142.07,142.03,2.6049]
[1718398302517,8.32,142.05,142.03,2.6049]
[1718398303509,8.32,142.05,142.03,7.8149]
[1718398304110,8.32,142.05,142.03,2.6049]
[1718398304288,10.9247,142.05,142.02,26.0514]
[1718398304616,10.9247,142.05,142.02,7.8153]
[1718398304823,8.32,142.03,142.02,7.8153]
[1718398305496,8.32,142.03,142.02,7.8156]
[1718398305697,8.32,142.03,142.0,7.8165]
[1718398305888,8.32,142.02,142.0,15.6333]
[1718398306088,8.32,142.02,142.0,7.8165]
[1718398306390,8.32,142.01,142.0,7.8165]
[1718398306910,7.815,142.04,142.01,2.6054]
[1718398307113,8.32,142.02,142.01,7.8162]
[1718398307313,8.32,142.02,142.01,2.6054]
[1718398307488,8.32,142.02,142.0,26.0558]
[1718398307694,8.32,142.02,142.0,26.0557]
[1718398308094,8.32,142.02,142.01,2.6054]
[1718398308311,8.32,142.02,142.0,26.0557]
[1718398308503,8.32,142.02,142.01,2.6054]
[1718398308908,8.32,142.02,142.0,26.0557]
[1718398309427,8.32,142.01,141.99,26.0579]
[1718398309594,8.32,142.0,141.99,26.0579]
[1718398310723,8.32,142.0,141.95,36.1766]
[1718398310892,8.32,141.98,141.97,5.2123]
[1718398311094,8.32,141.98,141.97,26.0613]
[1718398312921,23.4482,142.02,141.98,7.8178]
[1718398313137,8.32,141.99,141.98,7.8178]
[1718398314535,7.816,142.02,141.99,2.6058]
[1718398314716,8.32,142.0,141.99,2.6058]
[1718398315032,8.32,142.0,141.98,7.8177]
[1718398315203,8.32,141.99,141.98,26.0597]
[1718398315624,2.6052,142.03,142.0,2.6055]
[1718398315800,8.32,142.01,141.99,23.4519]
[1718398316000,8.32,142.0,141.99,7.817]
[1718398316205,26.0512,142.03,141.99,15.6344]
[1718398316403,8.32,142.0,141.99,26.0578]
[1718398317331,8.32,142.0,141.99,15.6346]
[1718398317531,8.32,142.0,141.99,7.8172]
[1718398318036,29.5429,142.04,142.0,26.0558]
[1718398318243,8.32,142.01,142.0,7.8167]
[1718398318539,45.1724,142.04,141.99,18.2399]
[1718398318540,10.9252,142.02,141.99,7.8169]
[1718398318834,8.32,142.01,141.99,15.6342]
[1718398319029,8.32,142.01,141.99,2.6056]
[1718398319228,8.32,142.01,141.99,23.452]
[1718398319429,8.32,142.01,142.0,2.6056]
[1718398321610,15.6273,142.06,142.01,10.4217]
[1718398321816,8.32,142.04,141.99,21.13]
[1718398322013,8.32,142.04,142.02,2.6052]
[1718398322237,8.32,142.03,142.01,26.054]
[1718398323239,8.32,142.03,142.02,7.8157]
[1718398323454,8.32,142.03,142.02,2.6052]
[1718398324823,15.6274,142.06,142.03,2.605]
[1718398325023,8.32,142.04,142.02,26.052]
[1718398325321,8.32,142.04,142.03,2.605]
[1718398325522,8.32,142.04,142.02,26.052]
[1718398326044,8.32,142.04,142.02,7.8156]
[1718398326349,8.32,142.03,142.02,7.8156]
[1718398326717,8.32,142.03,142.02,15.6314]
[1718398326917,8.32,142.03,142.02,26.0524]
[1718398327542,7.8139,142.06,142.03,7.8151]
[1718398327740,8.32,142.04,142.03,7.8151]
[1718398328347,8.32,142.05,142.04,2.6048]
[1718398328656,8.32,142.05,142.03,26.0501]
[1718398329357,8.32,142.05,142.03,2.6049]
[1718398329571,10.9247,142.05,142.02,26.0514]
[1718398329776,8.32,142.05,142.02,23.4463]
[1718398329950,8.32,142.05,142.03,7.8151]
[1718398330433,8.32,142.05,142.03,2.605]
[1718398330634,15.6272,142.06,142.03,2.605]
[1718398330856,23.4396,142.07,142.03,1.25123488]
[1718398331037,8.32,142.06,142.03,15.6302]
[1718398331241,8.32,142.06,142.03,16.88143487]
[1718398331446,10.9245,142.06,142.03,16.88143487]
[1718398331655,23.4396,142.07,142.03,16.88143487]
[1718398331656,2.6043,142.07,142.04,7.8143]
[1718398331837,8.32,142.06,142.04,10.4193]
[1718398332037,8.32,142.06,142.04,15.629]
[1718398332257,8.32,142.06,142.04,2.6047]
[1718398332560,23.9482,142.05,142.02,2.6052]
[1718398332731,8.32,142.04,142.02,2.6052]
[1718398332932,10.9249,142.04,142.01,26.0528]
[1718398333165,8.32,142.04,142.01,26.0528]
[1718398333458,34.3673,142.05,142.02,2.6052]
[1718398333634,16.1342,142.05,142.02,7.8157]
[1718398334256,8.32,142.05,142.02,15.6314]
[1718398334462,8.32,142.05,142.03,2.605]
[1718398334843,8.32,142.05,142.03,15.6301]
[1718398335067,8.32,142.05,142.03,2.605]
[1718398336757,8.32,142.05,142.03,7.8151]
[1718398336953,8.32,142.05,142.03,15.6303]
[1718398338454,8.32,142.05,142.03,26.0506]
[1718398338771,16.1728,142.11,142.04,18.2343]
[1718398338940,2.6038,142.1,142.07,7.8128]
[1718398339138,16.1728,142.11,142.08,18.2289]
[1718398339340,6.1525,142.12,142.1,7.8114]
[1718398339539,6.1525,142.12,142.05,29.45]
[1718398339759,8.32,142.11,142.1,2.6037]
[1718398340360,8.32,142.11,142.08,5.208]
[1718398340559,8.32,142.11,142.04,0.34]
[1718398340560,7.8127,142.08,142.04,13.0242]
[1718398340863,8.32,142.07,142.05,15.6279]
[1718398341083,8.32,142.07,142.05,23.4421]
[1718398341245,8.32,142.07,142.05,26.0466]
[1718398341444,8.32,142.07,142.06,7.8135]
[1718398342770,2.604,142.09,142.06,2.6045]
[1718398342972,8.32,142.08,142.06,7.8135]
[1718398343469,8.32,142.08,142.07,2.6043]
[1718398343686,8.32,142.08,142.07,7.8129]
[1718398344049,8.32,142.08,142.06,2.6043]
[1718398344354,10.9241,142.08,142.05,7.8138]
[1718398344544,8.32,142.08,142.06,2.6045]
[1718398345473,8.32,142.08,142.06,23.4404]
[1718398345672,8.32,142.08,142.06,26.0447]
[1718398346170,8.32,142.08,142.07,2.6043]
[1718398346377,8.32,142.08,142.06,26.0447]
[1718398346556,8.32,142.08,142.06,7.8132]
[1718398346757,8.32,142.08,142.06,2.6043]
[1718398347277,8.32,142.08,142.06,7.8133]
[1718398347568,8.32,142.08,142.07,2.6043]
[1718398348582,8.32,142.08,142.07,7.8129]
[1718398348975,8.32,142.08,142.07,2.6043]
[1718398350292,8.32,142.08,142.06,26.0446]
[1718398350462,2.6042,142.08,142.05,2.6045]
[1718398350669,8.32,142.07,142.05,15.6278]
[1718398350869,10.9241,142.08,142.05,7.8138]
[1718398351195,16.1325,142.08,142.05,2.6045]
[1718398351375,8.32,142.07,142.05,7.8138]
[1718398351887,8.32,142.07,142.06,2.6045]
[1718398352764,8.32,142.07,142.06,7.8135]
[1718398353567,8.32,142.07,142.06,26.0451]
[1718398353876,8.32,142.08,142.07,15.6259]
[1718398354069,8.32,142.08,142.07,7.8129]
[1718398354578,8.32,142.08,142.06,23.4401]
[1718398354775,7.8115,142.1,142.07,7.8129]
[1718398355099,32.2692,142.11,142.08,2.6041]
[1718398355270,8.32,142.09,142.08,2.6041]
[1718398355594,8.32,142.09,142.07,26.0426]
[1718398355777,8.32,142.09,142.08,2.6041]
[1718398356872,32.2692,142.11,142.08,2.6041]
[1718398357073,2.6038,142.1,142.08,2.6041]
[1718398357268,8.32,142.09,142.08,2.6041]
[1718398357492,2.6038,142.1,142.08,2.6041]
[1718398357685,8.32,142.09,142.07,26.0427]
[1718398358093,8.32,142.09,142.07,7.8128]
[1718398358588,2.6038,142.1,142.07,15.6258]
[1718398358777,8.32,142.09,142.07,15.6258]
[1718398359577,8.32,142.09,142.07,2.6042]
[1718398360102,10.924,142.09,142.07,2.6042]
[1718398360401,10.9239,142.09,142.07,2.6042]
[1718398360697,16.1324,142.08,142.05,7.8138]
[1718398361589,7.8125,142.08,142.05,7.8138]
[1718398361794,16.1325,142.08,142.05,7.8138]
[1718398362097,10.9242,142.08,142.06,2.6045]
[1718398362293,2.6046,142.06,142.03,7.8149]
[1718398362484,8.32,142.05,142.03,7.8149]
[1718398362683,10.9247,142.05,142.02,18.2359]
[1718398362879,8.32,142.05,142.03,2.605]
[1718398363085,2.6046,142.06,142.03,15.6303]
[1718398363400,8.32,142.05,142.03,26.0504]
[1718398363823,8.32,142.04,141.97,21.13]
[1718398364098,15.8897,142.08,141.98,7.8176]
[1718398364099,8.32,142.01,141.98,7.8176]
[1718398364489,8.32,142.01,141.99,2.6058]
[1718398365091,8.32,142.01,141.99,7.8174]
[1718398366202,8.32,142.01,141.99,26.0579]
[1718398366404,8.32,142.01,141.99,23.4521]
[1718398366577,8.32,142.01,141.99,26.0577]
[1718398366985,8.32,142.01,142.0,2.6056]
[1718398368108,8.32,142.01,142.0,7.8168]
[1718398369009,8.32,142.01,142.0,15.6337]
[1718398369303,8.32,142.01,142.0,26.0562]
[1718398369478,8.32,142.01,142.0,20.845]
[1718398369680,8.32,142.01,141.98,13.0297]
[1718398369884,24.4152,142.02,141.98,7.8176]
[1718398370090,16.5992,142.02,141.99,7.8173]
[1718398370410,8.32,142.0,141.99,2.6057]
[1718398371292,8.32,142.0,141.98,7.8176]
[1718398371483,40.0466,142.02,141.97,18.2424]
[1718398371484,8.32,141.99,141.97,18.2424]
[1718398371689,8.32,141.99,141.98,2.606]
[1718398371889,8.32,141.99,141.97,23.4546]
[1718398371890,8.32,141.99,141.97,26.0606]
[1718398372285,2.6055,142.01,141.98,2.606]
[1718398372501,8.32,141.99,141.94,21.13]
[1718398372715,8.32,141.98,141.97,26.0615]
[1718398375288,24.4153,142.02,141.99,2.6058]
[1718398375501,8.32,142.0,141.98,26.0595]
[1718398375700,8.32,141.99,141.98,2.6058]
[1718398376081,8.32,141.99,141.98,7.8178]
[1718398376711,8.32,141.99,141.98,2.6058]
[1718398377184,8.32,141.99,141.97,26.0608]
[1718398377602,8.32,141.99,141.97,2.606]
[1718398378003,8.32,141.99,141.97,7.8183]
[1718398378212,8.32,141.99,141.97,15.6368]
[1718398378590,23.4491,142.01,141.97,7.8183]
[1718398378792,8.32,141.98,141.97,7.8183]
[1718398378991,8.32,141.98,141.97,15.6368]
[1718398379408,16.5992,142.02,141.98,7.8176]
[1718398379602,8.32,141.99,141.98,2.6058]
[1718398379987,7.8163,142.01,141.97,26.0608]
[1718398380213,8.32,141.99,141.97,2.606]
[1718398380511,8.32,141.99,141.96,26.0624]
[1718398380718,7.8171,142.0,141.97,2.6061]
[1718398380896,8.32,141.98,141.97,2.6061]
[1718398383018,8.32,141.98,141.96,26.063]
[1718398383817,15.634,142.0,141.96,26.063]
[1718398384001,8.32,141.98,141.97,2.6061]
[1718398384416,8.32,141.98,141.96,26.063]
[1718398384908,7.8171,142.0,141.97,2.6061]
[1718398385097,8.32,141.98,141.97,2.6061]
[1718398386312,21.3501,141.98,141.94,7.8198]
[1718398386524,8.32,141.95,141.94,15.64]
[1718398386690,8.32,141.95,141.94,26.0669]
[1718398387701,8.32,141.95,141.94,2.6066]
[1718398388026,8.32,141.95,141.94,2.6067]